bitfinex/quotes_ETHUSD_20240618
["timestamp","ask_amount","ask_price","bid_price","bid_amount"]
[1718736476834,2.92883,3414.4,3413.7,2.92936]
[1718736477033,4.24121618,3414.4,3413.8,2.92926]
[1718736477237,2.9289,3414.3,3413.6,2.92944]
[1718736477544,2.9289,3414.3,3413.5,5.88722]
[1718736477545,1.1281731,3414.3,3413.5,5.88722]
[1718736477924,1.1281731,3414.3,3413.8,2.92923]
[1718736478498,4.0570531,3414.3,3413.8,2.92923]
[1718736478702,2.92894,3414.2,3413.7,2.92935]
[1718736478927,3.78096744,3414.2,3413.7,2.92935]
[1718736479362,2.92921,3413.9,3413.3,2.92968]
[1718736479503,2.2621,3414.3,3412.7,2.4371]
[1718736479504,4.53445129,3414.1,3412.7,2.4371]
[1718736479707,5.79384572,3414.0,3413.3,2.92971]
[1718736479946,3.0,3413.9,3413.3,2.92971]
[1718736480238,1.04634813,3413.8,3413.4,2.92961]
[1718736480440,1.04634813,3413.8,3413.3,2.9297]
[1718736480943,1.04634813,3413.8,3413.4,2.92958]
[1718736481309,5.92921,3413.9,3413.4,2.92958]
[1718736481512,8.85849,3413.9,3413.3,2.9297]
[1718736482348,3.0,3413.9,3413.5,2.92953]
[1718736482669,3.37965513,3414.2,3413.5,2.92953]
[1718736482852,0.71051464,3414.1,3413.5,2.92953]
[1718736483142,3.71051464,3414.1,3413.7,2.92936]
[1718736483307,6.63954464,3414.1,3413.6,2.92943]
[1718736483507,1.35038951,3414.0,3413.6,2.92943]
[1718736485241,4.27952951,3414.0,3413.5,2.92953]
[1718736486828,4.27952951,3414.0,3413.5,2.63563]
[1718736489274,1.21756404,3414.1,3413.9,2.92913]
[1718736489575,6.12299603,3414.7,3413.9,2.92912]
[1718736489576,5.9287,3414.5,3413.9,2.92912]
[1718736489735,7.97012069,3414.6,3414.0,2.92911]
[1718736489931,2.626314,3414.5,3414.0,2.92911]
[1718736490247,3.0,3414.4,3414.0,2.92911]
[1718736490442,3.0,3414.4,3414.1,2.92896]
[1718736490780,0.49700207,3414.5,3414.2,2.92887]
[1718736490932,3.0,3414.6,3414.2,2.92887]
[1718736491768,2.92881,3414.4,3413.4,2.92955]
[1718736491988,2.1294877,3414.3,3413.0,2.9299]
[1718736492264,2.92925,3413.9,3413.0,2.9299]
[1718736492427,2.92925,3413.9,3412.7,2.482]
[1718736492428,2.2598,3413.8,3413.2,2.92973]
[1718736492625,8.18915,3413.8,3413.3,2.9297]
[1718736492882,8.18915,3413.8,3413.1,2.92987]
[1718736492883,2.92937,3413.7,3412.9,2.93004]
[1718736493039,2.92955,3413.5,3412.9,2.93004]
[1718736493243,2.92963,3413.4,3412.9,2.93004]
[1718736493450,2.92947,3413.6,3413.0,3.47996]
[1718736493451,2.92961,3413.5,3413.0,3.47996]
[1718736494240,2.92961,3413.5,3413.0,2.92996]
[1718736494575,2.92964,3413.4,3412.9,2.93004]
[1718736495587,0.71900241,3413.4,3412.3,2.3607]
[1718736495792,2.92996,3413.1,3412.3,2.3607]
[1718736496073,2.93007,3412.9,3412.4,2.93047]
[1718736496630,2.93023,3412.7,3412.2,2.93065]
[1718736497035,2.93023,3412.7,3411.8,2.93098]
[1718736497036,2.9304,3412.5,3411.8,2.931]
[1718736497460,2.93063,3412.3,3411.5,2.1565]
[1718736497711,2.93076,3412.1,3410.8,2.93183]
[1718736497832,2.93076,3412.1,3411.6,2.93115]
[1718736498034,2.93076,3412.1,3411.5,2.93125]
[1718736498857,2.93091,3412.0,3411.3,2.93135]
[1718736499435,0.57516014,3412.2,3411.5,2.93125]
[1718736499635,2.93091,3412.0,3411.5,2.93125]
[1718736499875,2.93093,3411.9,3411.3,2.93135]
[1718736500940,2.93093,3411.9,3411.4,2.93134]
[1718736501478,2.93093,3411.9,3411.1,2.93153]
[1718736501772,0.35060901,3411.9,3411.2,0.55]
[1718736502085,2.93083,3412.0,3411.0,2.93169]
[1718736502374,2.93095,3411.9,3411.4,2.93132]
[1718736502791,0.57516014,3412.2,3411.9,2.9309]
[1718736502934,3.0,3412.1,3411.7,2.93108]
[1718736503141,3.0,3412.2,3411.7,2.93108]
[1718736503367,3.0,3412.3,3411.7,2.93108]
[1718736503592,3.6748069,3412.3,3411.7,2.93108]
[1718736503880,3.6748069,3412.3,3411.0,0.534929]
[1718736504173,2.93124,3411.6,3411.0,2.93167]
[1718736504551,2.93102,3411.8,3411.0,2.93168]
[1718736505680,2.9311,3411.7,3411.0,2.93168]
[1718736506483,2.9311,3411.7,3411.1,2.93153]
[1718736506680,2.93102,3411.8,3411.2,2.93148]
[1718736506976,2.93118,3411.6,3411.1,2.93159]
[1718736507197,2.93136,3411.4,3410.8,2.93181]
[1718736507345,2.93143,3411.3,3410.7,2.93193]
[1718736508178,2.93152,3411.2,3410.7,2.93193]
[1718736509116,2.93135,3411.4,3410.9,2.93175]
[1718736509761,2.93144,3411.3,3410.5,5.35993]
[1718736509968,2.93166,3411.1,3410.6,2.93203]
[1718736510164,0.293118,3411.6,3411.1,2.93159]
[1718736510367,5.931,3411.8,3411.3,2.93143]
[1718736510676,5.931,3411.8,3410.4,2.104]
[1718736510677,5.93101,3411.8,3411.0,2.9316]
[1718736511007,2.93158,3411.2,3410.6,2.93203]
[1718736511215,2.93158,3411.2,3410.7,2.93194]
[1718736511517,2.93163,3411.1,3410.5,2.93212]
[1718736511815,2.93163,3411.1,3410.6,2.932]
[1718736512018,2.93153,3411.2,3410.6,2.932]
[1718736512726,2.9321,3410.6,3410.1,0.05102161]
[1718736512950,2.93215,3410.5,3409.9,2.73281478]
[1718736513304,2.93222,3410.4,3409.7,5.41929]
[1718736513555,3.225244,3410.6,3409.7,2.4865]
[1718736513754,3.225244,3410.6,3409.9,2.93261]
[1718736513903,2.93219,3410.5,3409.9,2.93261]
[1718736514401,2.93219,3410.5,3410.0,2.93254]
[1718736514853,3.225244,3410.6,3410.0,5.86501]
[1718736515144,2.93212,3410.5,3410.0,2.93247]
[1718736515356,3.225244,3410.6,3410.0,2.93247]
[1718736515535,2.93221,3410.4,3409.8,2.93264]
[1718736515735,2.93221,3410.4,3409.7,2.4865]
[1718736515736,2.93221,3410.4,3409.7,5.41923]
[1718736516049,3.225284,3410.6,3410.1,2.93245]
[1718736516259,2.93213,3410.5,3410.0,2.93254]
[1718736517062,2.93237,3410.3,3409.7,2.93277]
[1718736517357,2.9324,3410.2,3409.7,2.93277]
[1718736517651,2.9324,3410.2,3409.4,2.93302]
[1718736517652,2.93247,3410.1,3409.6,2.93287]
[1718736518143,2.93239,3410.2,3409.7,2.93278]
[1718736518820,3.4901443,3410.3,3409.8,2.93271]
[1718736519334,0.71008898,3410.2,3409.9,2.93263]
[1718736519529,0.5578343,3410.3,3410.0,2.93253]
[1718736519731,9.68007898,3410.7,3410.1,2.93239]
[1718736520060,3.0,3410.6,3410.2,2.9323]
[1718736520211,3.0,3410.6,3409.5,2.9329]
[1718736520409,3.0,3410.6,3410.2,2.9323]
[1718736520813,6.74806898,3410.7,3410.6,2.93203]
[1718736521009,2.9321,3410.6,3410.0,2.93247]
[1718736521250,3.6069069,3410.6,3410.0,2.93247]
[1718736521815,2.93212,3410.5,3410.0,2.93247]
[1718736522057,2.93212,3410.5,3409.5,2.26]
[1718736522058,2.93237,3410.2,3409.5,2.63936]
[1718736522276,2.93237,3410.2,3409.3,2.93308]
[1718736522569,2.93237,3410.2,3409.2,2.93317]
[1718736522570,2.9326,3410.0,3409.5,2.93296]
[1718736522736,2.93248,3410.1,3409.6,2.93289]
[1718736523268,2.93248,3410.1,3409.5,2.93296]
[1718736523617,2.93255,3410.0,3409.5,2.93296]
[1718736523818,2.93255,3410.0,3409.4,2.93305]
[1718736524219,0.6748069,3410.1,3409.5,2.93296]
[1718736524456,0.6748069,3410.1,3409.6,2.93288]
[1718736524621,3.6073369,3410.1,3409.5,2.93297]
[1718736524816,2.4748,3410.4,3409.9,2.93259]
[1718736525131,5.4748,3410.4,3410.0,2.93249]
[1718736525815,5.4748,3410.4,3409.8,2.9327]
[1718736526017,3.0,3410.6,3410.1,2.93239]
[1718736526220,4.2611949,3410.6,3410.1,2.93239]
[1718736526453,4.2611949,3410.6,3410.2,2.93236]
[1718736527027,3.0,3410.6,3410.5,2.93212]
[1718736527334,6.74806898,3410.7,3410.4,2.93219]
[1718736527730,6.74806898,3410.7,3409.7,2.9328]
[1718736527731,2.93229,3410.3,3409.7,2.9328]
[1718736527952,3.9000259,3410.6,3410.1,2.93241]
[1718736529681,2.93239,3410.2,3409.6,2.93288]
[1718736529979,2.93239,3410.2,3409.7,2.9328]
[1718736530544,2.93235,3410.3,3409.6,2.93288]
[1718736530749,3.48636931,3410.6,3409.6,2.93288]
[1718736530985,2.93238,3410.2,3409.7,2.93278]
[1718736531280,2.93222,3410.4,3409.8,2.9327]
[1718736531281,2.93231,3410.3,3409.8,2.9327]
[1718736531846,2.93231,3410.3,3409.8,2.6388]
[1718736532646,0.50756309,3410.5,3410.2,2.93234]
[1718736532859,5.93204,3410.6,3410.2,2.93234]
[1718736533457,3.0,3410.6,3409.5,3.226231]
[1718736533657,2.93189,3410.8,3410.3,2.93229]
[1718736533850,3.0,3410.7,3410.3,2.93229]
[1718736534653,0.50755698,3410.9,3410.2,2.93236]
[1718736535001,10.18731596,3411.0,3410.6,2.93202]
[1718736535349,0.50755698,3410.9,3410.6,2.93202]
[1718736535559,10.18731596,3411.0,3410.5,2.93209]
[1718736535755,0.50755698,3410.9,3410.5,2.93209]
[1718736536195,0.50755698,3410.9,3410.6,2.93196]
[1718736536707,10.18731596,3411.0,3410.6,2.93196]
[1718736536855,2.93186,3410.8,3410.3,2.93221]
[1718736537058,2.93186,3410.8,3410.4,2.93219]
[1718736537276,3.43935698,3410.9,3410.4,2.93219]
[1718736537704,2.93213,3410.5,3410.0,2.93254]
[1718736538282,2.93221,3410.4,3409.9,2.93262]
[1718736538809,2.93207,3410.6,3409.9,5.86517]
[1718736538810,2.93214,3410.5,3409.9,5.86517]
[1718736539111,3.7954367,3410.5,3409.7,2.93272]
[1718736539315,2.93222,3410.4,3409.9,2.93262]
[1718736540116,2.93237,3410.3,3409.7,2.93272]
[1718736540327,2.93247,3410.1,3409.6,2.93288]
[1718736540617,2.93261,3410.0,3409.3,2.93315]
[1718736540913,2.93261,3410.0,3409.5,2.93298]
[1718736541926,2.93261,3410.0,3409.0,2.465]
[1718736541927,2.4726,3409.9,3409.0,2.465]
[1718736542082,2.9329,3409.6,3408.8,2.93352]
[1718736542284,2.9329,3409.6,3409.1,2.93332]
[1718736542480,0.50755698,3409.9,3408.6,3.0]
[1718736542746,2.93229,3410.3,3409.7,2.93272]
[1718736543064,0.50755698,3410.4,3409.3,2.323]
[1718736543260,2.93196,3410.7,3410.2,2.93231]
[1718736543261,3.43951698,3410.7,3410.2,2.93231]
[1718736543462,0.50755698,3410.7,3410.3,2.93227]
[1718736543649,7.25562596,3410.8,3410.3,2.93227]
[1718736543855,7.25562596,3410.8,3410.4,2.93219]
[1718736544067,0.50755698,3410.8,3410.4,2.93219]
[1718736544229,2.93189,3410.8,3410.3,2.93227]
[1718736544553,2.93189,3410.8,3410.2,2.93236]
[1718736544554,2.93195,3410.7,3410.0,2.9325]
[1718736544760,4.341309,3410.8,3410.1,2.93246]
[1718736545061,6.09472921,3410.7,3410.1,2.93239]
[1718736545264,0.50755698,3410.8,3410.5,2.93204]
[1718736545497,3.43925698,3411.0,3410.5,2.93204]
[1718736545763,5.23062,3411.1,3409.7,2.3377]
[1718736545764,5.08615171,3410.9,3409.7,2.3377]
[1718736545981,5.06347971,3410.8,3410.2,2.93231]
[1718736546273,2.93192,3410.8,3410.3,2.93221]
[1718736546563,3.754842,3410.9,3410.3,2.93222]
[1718736546779,2.9317,3411.0,3410.2,2.93233]
[1718736546780,2.13157768,3410.8,3410.2,2.93233]
[1718736546930,2.13157768,3410.9,3410.5,2.93206]
[1718736547765,2.13157768,3410.9,3410.6,2.93203]
[1718736548369,2.13157768,3410.9,3410.2,2.90711249]
[1718736548370,0.50755698,3411.2,3410.9,2.93173]
[1718736548535,4.2626097,3411.1,3411.0,2.93169]
[1718736548868,0.50755698,3411.6,3411.3,2.93134]
[1718736549062,2.13106173,3411.5,3411.3,2.93134]
[1718736549366,0.50755698,3411.7,3411.3,2.93134]
[1718736549367,2.13108098,3411.6,3411.3,2.93134]
[1718736549668,4.26211411,3411.5,3411.3,2.93134]
[1718736549876,3.43857698,3411.8,3411.3,2.93134]
[1718736550068,7.26211285,3411.7,3411.3,2.93134]
[1718736550272,4.26211285,3411.6,3410.7,2.93191]
[1718736550572,4.26211285,3411.5,3411.1,2.9316]
[1718736550784,4.26211285,3411.4,3411.1,2.9316]
[1718736550952,1.96588637,3411.6,3411.2,2.93151]
[1718736551156,4.26222297,3411.5,3411.2,2.93151]
[1718736551456,1.45832939,3411.6,3411.2,2.93151]
[1718736551457,2.13111303,3411.4,3411.2,2.93151]
[1718736551656,1.96588637,3411.6,3411.2,2.93151]
[1718736551852,7.46060402,3411.7,3411.4,2.93134]
[1718736551853,4.2621885,3411.5,3411.4,2.93134]
[1718736552068,2.037061,3411.9,3411.5,2.9312]
[1718736552267,2.13095308,3411.8,3411.5,2.9312]
[1718736552465,2.1309162,3411.7,3411.5,2.9312]
[1718736552781,3.50755698,3411.9,3411.6,2.93117]
[1718736553079,3.50755698,3411.9,3411.7,2.93109]
[1718736553080,4.26164238,3411.8,3411.7,2.93109]
[1718736553283,2.13080538,3411.8,3411.7,5.86218]
[1718736553590,1.52950402,3412.3,3412.1,2.93074]
[1718736553786,1.83540482,3412.7,3412.1,2.93074]
[1718736553787,1.52950402,3412.6,3412.3,2.93055]
[1718736553954,4.26081203,3412.5,3412.3,2.93055]
[1718736554154,1.6480507,3412.6,3412.3,2.93055]
[1718736554461,1.52950402,3412.8,3412.5,2.93032]
[1718736554674,1.52950402,3412.9,3412.5,2.93032]
[1718736554985,2.13029845,3412.8,3412.3,2.93051]
[1718736555186,1.52950402,3412.9,3412.6,2.9303]
[1718736555386,1.29912987,3412.9,3412.5,2.93038]
[1718736556310,1.29912987,3412.9,3412.0,2.4963]
[1718736556311,2.9304,3412.6,3412.0,5.42711]
[1718736556589,2.93064,3412.3,3411.8,2.93093]
[1718736556999,2.93064,3412.3,3411.7,2.93108]
[1718736557000,2.9305,3412.4,3411.9,2.9309]
[1718736557971,2.93092,3411.9,3411.4,2.9313]
[1718736558192,0.518148,3412.1,3411.2,2.93147]
[1718736558399,3.0,3412.3,3412.1,2.93073]
[1718736558581,3.0,3412.4,3412.1,2.93073]
[1718736558781,3.0,3412.5,3412.1,2.93073]
[1718736559117,4.5051849,3412.5,3412.1,2.93073]
[1718736559316,4.5051849,3412.5,3411.2,2.104]
[1718736559317,4.5051849,3412.5,3412.2,2.93065]
[1718736560198,4.5051849,3412.5,3412.1,2.93072]
[1718736560409,2.93104,3411.8,3411.2,5.0355]
[1718736560632,2.93109,3411.7,3411.2,2.93147]
[1718736560937,2.93092,3411.9,3411.3,2.93136]
[1718736561292,2.93092,3411.9,3411.4,2.93131]
[1718736561490,2.2907,3412.0,3410.7,2.2555]
[1718736561491,3.746264,3411.8,3410.7,5.1874]
[1718736561758,2.2907,3412.0,3410.6,5.104]
[1718736561759,2.93133,3411.5,3410.6,2.93202]
[1718736561905,2.93133,3411.5,3409.4,9.96951]
[1718736561906,2.93168,3411.1,3410.4,2.9322]
[1718736562100,2.93168,3411.1,3410.6,2.93202]
[1718736563296,2.93172,3411.0,3410.5,2.93211]
[1718736563521,2.93172,3411.0,3410.2,2.9323]
[1718736563522,2.93177,3410.9,3410.2,2.93231]
[1718736563696,2.93204,3410.6,3410.0,2.93251]
[1718736563895,2.93195,3410.7,3410.1,2.93239]
[1718736564115,2.9321,3410.6,3410.0,2.93254]
[1718736564632,2.93196,3410.7,3410.2,2.93236]
[1718736564929,2.93188,3410.8,3410.2,2.9323]
[1718736565137,2.93195,3410.7,3410.2,2.9323]
[1718736565434,2.93214,3410.5,3409.9,2.93263]
[1718736565596,2.93221,3410.4,3409.7,2.93279]
[1718736565801,2.93211,3410.6,3409.8,2.93272]
[1718736566027,2.93212,3410.5,3409.9,2.93256]
[1718736566931,5.93188,3410.8,3410.0,2.93254]
[1718736567141,1.2679949,3410.7,3410.0,2.93254]
[1718736567494,4.1999449,3410.7,3410.2,2.93236]
[1718736568366,2.93217,3410.5,3410.0,2.93254]
[1718736568543,2.93227,3410.4,3409.9,2.93256]
[1718736569426,6.74358138,3410.6,3410.0,2.93253]
[1718736569761,0.87943138,3410.6,3410.1,2.93245]
[1718736570221,3.81150138,3410.6,3410.1,2.93245]
[1718736570418,2.93212,3410.5,3410.0,2.93253]
[1718736571535,2.93212,3410.5,3410.0,2.63863]
[1718736572050,2.93212,3410.5,3409.9,2.93262]
[1718736572544,2.93221,3410.4,3409.7,2.93279]
[1718736572949,2.93238,3410.2,3409.7,2.93279]
[1718736573316,2.93221,3410.4,3409.6,2.93289]
[1718736573317,2.93231,3410.3,3409.8,2.93271]
[1718736573519,5.673323,3410.5,3409.9,2.93263]
[1718736574215,5.673323,3410.5,3410.0,2.93254]
[1718736575449,2.93223,3410.4,3409.9,2.93262]
[1718736575661,2.741133,3410.5,3409.9,2.93262]
[1718736576014,5.93188,3410.8,3410.3,2.93222]
[1718736576269,3.0,3410.8,3409.7,2.93276]
[1718736576420,6.74806898,3410.9,3410.7,2.93194]
[1718736576756,5.86313,3411.2,3410.7,2.93194]
[1718736576952,2.93154,3411.2,3410.7,2.64243954]
[1718736577155,2.93163,3411.1,3410.7,2.64243954]
[1718736577455,2.93163,3411.1,3410.6,2.93202]
[1718736578725,5.0176769,3411.2,3410.5,2.93209]
[1718736578924,3.0,3411.1,3410.7,2.93188]
[1718736579760,2.93191,3410.8,3410.1,2.93243]
[1718736579986,2.93178,3410.9,3410.3,2.93228]
[1718736580461,2.93178,3410.9,3410.4,2.93214]
[1718736580622,2.93186,3410.8,3410.3,2.93229]
[1718736581152,2.93207,3410.6,3410.0,2.93248]
[1718736581460,2.93195,3410.7,3410.2,2.93237]
[1718736583366,2.93169,3411.0,3410.5,2.93211]
[1718736583567,3.0,3410.9,3410.5,2.93211]
[1718736583972,5.93179,3410.9,3410.4,2.9322]
[1718736584856,5.93179,3410.9,3410.5,2.9321]
[1718736585255,3.0,3410.9,3410.1,2.93242]
[1718736585569,2.2704,3410.7,3410.2,2.93235]
[1718736585746,2.93203,3410.6,3410.2,2.93235]
[1718736586173,2.93203,3410.6,3410.1,2.93244]
[1718736586578,2.9322,3410.4,3409.9,2.93261]
[1718736587776,0.33637973,3410.6,3409.9,2.93261]
[1718736587949,5.20243,3410.7,3409.9,2.93261]
[1718736588773,2.93204,3410.6,3409.7,5.19396]
[1718736588976,2.9322,3410.4,3409.9,2.93261]
[1718736589449,2.93214,3410.5,3410.0,2.93253]
[1718736589758,0.50754935,3410.7,3410.3,2.93223]
[1718736589951,2.93187,3410.8,3410.4,2.9322]
[1718736590151,2.93177,3410.9,3410.1,2.93245]
[1718736590354,2.93177,3410.9,3410.2,2.93235]
[1718736590652,2.93177,3410.9,3408.5,5.0378]
[1718736590653,2.3042,3410.6,3409.6,2.93282]
[1718736590875,2.93222,3410.4,3409.5,2.93297]
[1718736591084,2.93214,3410.5,3409.8,2.93268]
[1718736591395,2.93214,3410.5,3410.0,2.93254]
[1718736591752,2.93214,3410.5,3410.0,2.63864]
[1718736591945,3.4394921,3410.7,3410.3,2.93227]
[1718736591946,0.5075421,3410.7,3410.3,2.93227]
[1718736592184,3.4394621,3410.8,3410.3,2.93227]
[1718736592352,2.93192,3410.8,3410.3,2.93227]
[1718736592553,5.6951221,3410.9,3410.3,2.93227]
[1718736592554,2.93195,3410.7,3410.3,2.93227]
[1718736593270,2.93188,3410.8,3410.3,2.93227]
[1718736593473,2.9321,3410.6,3410.1,2.93243]
[1718736593813,2.93212,3410.5,3410.1,2.93243]
[1718736593956,2.93212,3410.5,3410.0,2.93252]
[1718736594153,2.93232,3410.3,3409.7,2.93274]
[1718736594354,2.93221,3410.4,3409.9,2.93263]
[1718736594355,2.93222,3410.4,3409.9,2.93263]
[1718736595184,2.9323,3410.3,3409.8,2.9327]
[1718736596578,2.9323,3410.3,3409.9,2.93262]
[1718736596984,3.43958632,3410.6,3410.0,2.93255]
[1718736596985,2.93222,3410.4,3410.0,2.93255]
[1718736597490,2.93221,3410.4,3410.0,2.93255]
[1718736597784,2.93221,3410.4,3409.9,2.93262]
[1718736597971,2.93221,3410.4,3409.8,2.93269]
[1718736597972,2.9323,3410.3,3409.8,2.93269]
[1718736598809,3.27619663,3410.4,3409.9,2.93263]
[1718736599864,2.9323,3410.3,3409.9,2.93263]
[1718736600251,2.93213,3410.5,3410.0,2.93251]
[1718736600451,0.74983447,3410.5,3409.3,2.3679]
[1718736600686,2.93244,3410.2,3409.6,2.93288]
[1718736600897,2.93244,3410.2,3409.7,2.93274]
[1718736601558,2.93247,3410.1,3409.7,2.93274]
[1718736601861,2.93244,3410.2,3409.7,2.93272]
[1718736603249,2.9323,3410.3,3409.7,2.93272]
[1718736603250,2.93246,3410.1,3409.7,2.93272]
[1718736603576,5.25500566,3410.3,3409.8,2.93266]
[1718736603754,0.79042927,3410.3,3410.0,2.93254]
[1718736603954,4.46454639,3410.4,3410.0,2.93246]
[1718736603955,1.53227639,3410.4,3410.0,2.93246]
[1718736604198,1.53227639,3410.6,3410.5,2.93212]
[1718736604494,4.46405639,3410.9,3410.5,2.93212]
[1718736604653,5.79525774,3410.8,3410.5,2.93212]
[1718736604856,1.53227639,3410.9,3410.6,2.93197]
[1718736605055,1.53227639,3411.0,3410.7,2.93188]
[1718736605356,2.13133462,3410.9,3410.8,2.93184]
[1718736605591,4.26267838,3410.9,3410.8,2.93184]
[1718736605815,1.53227639,3411.1,3410.9,2.93176]
[1718736606093,4.26243774,3411.0,3410.9,2.93176]
[1718736606283,5.79470489,3411.0,3410.9,2.93176]
[1718736606481,5.79470489,3411.0,3410.7,2.93188]
[1718736606681,2.13121852,3410.9,3410.8,2.93179]
[1718736606855,5.79992271,3410.9,3410.8,2.93179]
[1718736607269,2.9321,3410.6,3410.0,2.432]
[1718736607495,1.53827668,3410.4,3409.9,2.93262]
[1718736607700,8.73301655,3410.3,3409.7,2.93276]
[1718736607911,5.80072655,3410.2,3409.9,2.93263]
[1718736608121,5.80072655,3410.1,3409.9,2.93263]
[1718736608277,4.26244987,3410.0,3409.9,2.93263]
[1718736608867,4.26244987,3410.0,3409.7,2.93276]
[1718736608868,2.13123135,3410.0,3409.7,2.93276]
[1718736609063,4.47066668,3410.2,3409.7,2.93276]
[1718736609064,1.53827668,3410.1,3409.7,2.93276]
[1718736609312,5.80188174,3410.0,3409.7,2.93276]
[1718736609549,4.26360506,3409.9,3409.3,2.3177]
[1718736609664,1.53895336,3409.6,3409.5,2.93298]
[1718736610016,2.13176248,3409.8,3409.6,2.93289]
[1718736610306,5.80290064,3409.7,3409.6,2.93289]
[1718736610513,5.80285856,3409.7,3409.6,2.93289]
[1718736612120,5.80285856,3409.7,3409.5,2.93297]
[1718736612341,2.93308,3409.4,3408.9,2.93347]
[1718736612470,7.19702459,3409.6,3408.5,2.93378]
[1718736612471,1.5385804,3409.2,3408.5,2.93378]
[1718736612821,5.80271499,3409.1,3409.0,2.93341]
[1718736612984,4.26413459,3409.1,3409.0,2.93341]
[1718736613164,1.5385804,3409.4,3409.0,2.93341]
[1718736613364,4.26463248,3409.3,3409.1,2.93331]
[1718736613670,1.5385804,3409.4,3409.1,2.93331]
[1718736613876,4.26454086,3409.3,3409.1,2.64232308]
[1718736614066,1.5385804,3409.4,3409.1,2.64232308]
[1718736614304,2.13225333,3409.3,3409.1,2.64232308]
[1718736614513,1.5385804,3409.5,3409.1,2.64232308]
[1718736614707,4.26452531,3409.4,3409.0,2.93339]
[1718736614877,2.13234004,3409.3,3409.0,2.93339]
[1718736615085,8.5933874,3409.8,3409.0,2.93339]
[1718736615086,2.04545174,3409.6,3409.4,2.93306]
[1718736615282,2.04545174,3409.8,3409.6,2.93289]
[1718736615479,4.26409752,3409.7,3409.6,2.93289]
[1718736615791,4.26408098,3409.7,3409.6,2.93289]
[1718736616166,2.13203218,3409.7,3409.6,8.79867]
[1718736616403,6.74806898,3410.1,3409.9,2.93263]
[1718736616613,1.53776535,3410.4,3410.0,8.79765]
[1718736616896,1.53776535,3410.8,3410.6,2.93203]
[1718736617077,1.53776535,3410.9,3410.7,2.93194]
[1718736617283,2.35284049,3411.2,3410.6,2.93203]
[1718736617284,1.53776535,3411.0,3410.8,2.93184]
[1718736617502,6.74806898,3411.3,3410.9,2.93177]
[1718736617503,1.53776535,3411.1,3410.9,2.93177]
[1718736617679,4.2625029,3411.0,3410.9,2.93177]
[1718736618617,6.74806898,3411.3,3411.0,2.93166]
[1718736618618,8.28583433,3411.3,3411.0,2.93166]
[1718736618815,2.13110139,3411.2,3411.1,2.9316]
[1718736619117,2.13110139,3411.2,3411.1,5.8632]
[1718736619118,4.26221834,3411.2,3411.1,5.8632]
[1718736619273,4.26225553,3411.2,3411.1,5.8632]
[1718736619473,4.26225553,3411.2,3409.9,2.2991]
[1718736619474,0.63059029,3411.2,3409.9,2.2991]
[1718736619711,4.29792727,3411.2,3410.7,2.93194]
[1718736619869,2.13109837,3411.1,3410.7,2.93194]
[1718736620219,1.53623861,3411.0,3410.7,5.86388]
[1718736620376,1.53623861,3411.1,3410.8,2.93179]
[1718736620746,4.26255682,3411.0,3410.8,2.93179]
[1718736620883,1.53623861,3411.2,3410.8,2.93179]
[1718736621070,4.26249659,3411.1,3410.8,2.93179]
[1718736621427,1.53623861,3411.2,3410.8,2.93179]
[1718736621572,4.26245822,3411.1,3410.8,2.93179]
[1718736621776,2.93178,3410.9,3410.4,2.64048587]
[1718736622082,2.93197,3410.7,3410.2,2.93236]
[1718736622430,5.42936626,3410.6,3410.4,2.93218]
[1718736622718,1.53595067,3410.8,3410.3,2.93228]
[1718736623017,5.79902937,3410.7,3410.3,2.93228]
[1718736623178,2.13152698,3410.6,3410.3,2.93228]
[1718736623503,1.53595067,3410.8,3410.3,2.93228]
[1718736623677,4.26308017,3410.7,3410.3,2.93228]
[1718736623869,2.67712961,3410.8,3410.4,2.93218]
[1718736624077,4.26301875,3410.7,3410.4,2.93218]
[1718736624414,7.19518977,3410.6,3410.0,2.93254]
[1718736624732,8.73127813,3410.5,3410.0,2.93254]
[1718736625012,5.79912813,3410.4,3410.0,2.93254]
[1718736625227,2.13175673,3410.3,3410.0,2.93254]
[1718736625403,2.13175673,3410.3,3409.8,2.93269]
[1718736625725,1.53619133,3410.5,3410.1,2.93239]
[1718736626018,4.2633816,3410.4,3410.1,2.93239]
[1718736626172,2.45994589,3410.5,3410.1,2.93239]
[1718736626373,4.26340627,3410.4,3410.1,2.93239]
[1718736626574,4.26345545,3410.3,3410.1,2.93239]
[1718736626816,1.53619133,3410.4,3410.1,2.93239]
[1718736626988,4.26345349,3410.3,3410.1,2.93239]
[1718736627189,1.53619133,3410.4,3410.1,2.93239]
[1718736627388,4.26344975,3410.3,3410.1,2.93239]
[1718736627616,1.53619133,3410.4,3410.1,2.93239]
[1718736627786,4.26344278,3410.3,3410.1,2.93239]
[1718736627989,1.53619133,3410.4,3410.1,2.93239]
[1718736628288,2.13170075,3410.3,3410.2,2.93235]
[1718736628487,2.45994589,3410.5,3410.3,2.93229]
[1718736628695,0.37562578,3410.6,3410.3,2.93229]
[1718736628696,2.13168262,3410.4,3410.3,2.93229]
[1718736628900,1.53619133,3410.6,3410.4,2.9322]
[1718736629096,1.53619133,3410.7,3410.5,2.93212]
[1718736629307,2.13152589,3410.6,3410.5,2.93212]
[1718736629692,1.53619133,3410.8,3410.6,2.93203]
[1718736629874,4.26300358,3410.7,3410.6,2.93203]
[1718736630077,4.26300358,3410.7,3410.6,5.86406]
[1718736630302,1.53619133,3410.9,3410.7,2.93194]
[1718736630506,1.53619133,3410.9,3410.8,2.93186]
[1718736630705,1.53600951,3411.0,3410.9,2.9317]
[1718736630917,5.79874359,3411.0,3410.9,2.9317]
[1718736631083,4.26273408,3411.0,3410.9,5.86347]
[1718736631283,1.53600951,3411.1,3411.0,2.93169]
[1718736631513,0.50747381,3411.3,3411.0,2.93169]